bitfinex/quotes_SOLUSD_20240808
["timestamp","ask_amount","ask_price","bid_price","bid_amount"]
[1723132210850,6.53454231,159.73,159.7,15.6537]
[1723132211031,12.8541,159.78,159.72,6.2608]
[1723132211360,6.259,159.77,159.7,21.9153]
[1723132211531,6.2594,159.76,159.7,21.9153]
[1723132212055,6.2592,159.77,159.71,6.2613]
[1723132212231,12.8541,159.78,159.72,6.2609]
[1723132212432,6.26,159.75,159.67,15.6572]
[1723132212670,6.5955,159.78,159.67,15.6572]
[1723132212671,1.56531994,159.74,159.67,15.6572]
[1723132212856,6.2613,159.71,159.64,21.9238]
[1723132213150,6.2613,159.71,159.65,6.2636]
[1723132213343,15.6478,159.77,159.66,6.2632]
[1723132213545,6.2609,159.72,159.65,6.2636]
[1723132213848,45.0,159.71,159.64,15.6598]
[1723132214044,45.0,159.71,159.61,15.6627]
[1723132214045,6.2625,159.68,159.61,15.6627]
[1723132214224,45.0,159.67,159.62,6.2648]
[1723132214649,45.0,159.68,159.61,15.6627]
[1723132214847,45.0,159.68,159.64,6.264]
[1723132215047,45.0,159.68,159.65,6.2636]
[1723132215349,6.2606,159.73,159.66,6.2632]
[1723132215827,6.1317,159.75,159.67,16.90273864]
[1723132216029,6.1317,159.75,159.69,6.2619]
[1723132216255,6.259,159.77,159.71,6.2612]
[1723132217054,6.259,159.77,159.7,6.2616]
[1723132217438,21.93018013,159.79,159.71,16.89779382]
[1723132217439,6.53158013,159.79,159.71,16.89779382]
[1723132217653,6.53158013,159.79,159.73,6.2602]
[1723132217850,12.79008013,159.79,159.72,6.2609]
[1723132218027,6.53158013,159.79,159.68,15.6559]
[1723132218234,6.53158013,159.79,159.7,15.6534]
[1723132218541,12.78978013,159.79,159.72,6.2608]
[1723132218727,6.53158013,159.79,159.73,6.2604]
[1723132219048,6.53158013,159.79,159.73,15.6511]
[1723132219348,12.78988013,159.79,159.73,15.6511]
[1723132219526,6.2586,159.78,159.72,6.2608]
[1723132219733,6.2586,159.78,159.71,6.2612]
[1723132220245,45.0,159.77,159.71,6.2612]
[1723132220552,45.0,159.77,159.72,6.2609]
[1723132220759,45.0,159.77,159.71,6.2612]
[1723132221067,45.0,159.78,159.71,6.2612]
[1723132221354,6.2591,159.77,159.7,15.654]
[1723132221654,45.0,159.76,159.7,21.9156]
[1723132222150,45.0,159.76,159.71,6.2612]
[1723132222534,51.2594,159.76,159.7,15.654]
[1723132222729,45.0,159.76,159.7,21.9156]
[1723132222928,45.0,159.76,159.71,6.2612]
[1723132223749,45.0,159.76,159.72,6.2609]
[1723132223941,45.0,159.76,159.71,6.2612]
[1723132224334,45.0,159.76,159.67,30.9399]
[1723132224536,45.0,159.76,159.69,6.262]
[1723132225242,6.2601,159.74,159.67,15.657]
[1723132225550,45.0,159.73,159.69,6.262]
[1723132225744,51.2596,159.76,159.7,6.2617]
[1723132226061,45.0,159.76,159.7,6.2617]
[1723132226261,45.0,159.76,159.71,6.2611]
[1723132226434,45.0,159.76,159.7,6.2617]
[1723132226638,45.0,159.76,159.71,6.2611]
[1723132226861,45.0,159.76,159.71,15.6528]
[1723132227159,45.0,159.76,159.71,21.914]
[1723132227335,45.0,159.76,159.71,21.9138]
[1723132227539,6.52134609,159.77,159.71,15.6528]
[1723132227739,6.52134609,159.77,159.72,7.50527951]
[1723132228148,6.52134609,159.77,159.72,1.24467951]
[1723132228348,6.4092,159.8,159.75,6.2597]
[1723132228756,6.4092,159.8,159.74,7.50422319]
[1723132228938,6.4092,159.8,159.73,21.9113]
[1723132229139,6.2585,159.79,159.73,15.6508]
[1723132229465,12.6671,159.8,159.74,7.50441113]
[1723132229760,6.4092,159.8,159.75,6.2595]
[1723132229965,0.2355872,159.82,159.79,6.2581]
[1723132230565,0.2355872,159.82,159.78,6.2585]
[1723132231957,0.2355872,159.82,159.77,21.9058]
[1723132232460,0.2355872,159.82,159.78,6.2584]
[1723132232660,0.2355872,159.82,159.77,21.9058]
[1723132232857,0.2355872,159.82,159.78,6.2585]
[1723132233061,0.2355872,159.82,159.79,16.88766578]
[1723132233734,0.2355872,159.82,159.81,6.2574]
[1723132234467,6.193,159.96,159.86,6.2551]
[1723132234645,6.193,159.96,159.84,15.6398]
[1723132234846,15.631,159.94,159.81,27.5035]
[1723132235043,6.2539,159.9,159.82,1.24206224]
[1723132235244,6.193,159.96,159.85,6.2558]
[1723132235443,6.193,159.96,159.86,6.2554]
[1723132235444,6.2531,159.93,159.86,6.2554]
[1723132235861,6.2532,159.92,159.85,6.2557]
[1723132236144,6.2523,159.95,159.88,6.2545]
[1723132236345,5.2523,159.95,159.88,6.2545]
[1723132236570,6.2523,159.94,159.87,6.255]
[1723132236868,6.2527,159.93,159.86,6.2554]
[1723132237075,6.2523,159.94,159.87,6.255]
[1723132237273,6.2519,159.95,159.88,6.2546]
[1723132237561,0.8198944,159.98,159.91,15.6335]
[1723132237766,6.2515,159.96,159.89,6.2542]
[1723132238145,6.2512,159.97,159.9,6.2538]
[1723132238564,6.2517,159.96,159.88,21.8909]
[1723132238754,7.0707944,159.98,159.88,15.6366]
[1723132238938,7.0707944,159.98,159.9,6.2535]
[1723132239148,0.8198944,159.98,159.92,6.253]
[1723132239371,0.8198944,159.98,159.95,6.2519]
[1723132239567,0.8198944,159.98,159.94,15.6307]
[1723132239746,0.8198944,159.98,159.93,6.2525]
[1723132240067,0.8198944,159.98,159.93,7.49216686]
[1723132240367,0.8198944,159.98,159.93,15.6316]
[1723132240950,0.8198944,159.98,159.96,21.8799]
[1723132241257,0.8198944,159.98,159.96,15.6284]
[1723132241468,0.8198944,159.98,159.97,6.2511]
[1723132243344,0.8198944,159.98,159.97,7.48940972]
[1723132243546,0.8198944,159.98,159.97,6.2511]
[1723132243971,0.8198944,159.98,159.97,13.58159148]
[1723132244199,6.2465,160.09,160.02,6.2491]
[1723132245057,6.2465,160.09,160.01,6.2495]
[1723132245466,6.5496,160.1,160.03,6.2487]
[1723132245672,12.7958,160.1,160.04,1.23712292]
[1723132245953,6.5496,160.1,160.0,21.874]
[1723132246150,22.1655,160.1,159.97,6.0924]
[1723132246345,6.5496,160.1,159.97,1.23813044]
[1723132246554,6.5496,160.1,159.95,31.6718]
[1723132246555,45.0,160.09,159.98,1.23826659]
[1723132246761,45.0,160.09,159.97,15.6269]
[1723132246986,6.2486,160.04,159.98,1.23826692]
[1723132247184,45.0,160.09,159.97,15.6269]
[1723132247382,15.6171,160.08,159.95,16.0427]
[1723132247683,45.0,160.09,159.93,21.7232]
[1723132247684,40.7,160.05,159.93,15.6308]
[1723132247867,15.6222,160.03,159.91,6.2531]
[1723132248069,6.2508,159.98,159.91,6.2531]
[1723132248266,45.0,160.02,159.9,16.0681]
[1723132248267,45.0,159.97,159.9,16.0681]
[1723132248479,15.635,160.02,159.91,1.23997576]
[1723132248787,45.0,160.01,159.9,17.3077565]
[1723132248956,6.2516,159.96,159.89,28.0588]
[1723132249163,45.0,160.01,159.89,21.8046]
[1723132249385,45.0,160.01,159.9,1.24036922]
[1723132249588,51.2994,160.01,159.89,21.8046]
[1723132249885,6.2511,159.98,159.91,6.2534]
[1723132250392,6.2519,159.96,159.89,6.2541]
[1723132250596,6.2537,159.91,159.85,6.1245]
[1723132250885,15.6292,159.96,159.84,15.6397]
[1723132250886,56.3292,159.96,159.84,15.6397]
[1723132251065,6.2534,159.92,159.84,15.6397]
[1723132251267,6.253,159.93,159.86,6.2554]
[1723132251461,45.0,159.92,159.84,21.8955]
[1723132251773,15.6319,159.93,159.8,21.8045]
[1723132251979,15.6319,159.93,159.78,16.0122]
[1723132251980,56.3319,159.93,159.78,16.0122]
[1723132252283,45.0,159.92,159.79,1.24247533]
[1723132252468,45.0,159.92,159.84,6.256]
[1723132252669,6.2538,159.91,159.85,1.24154621]
[1723132252891,6.2543,159.89,159.83,15.6414]
[1723132253089,6.2543,159.89,159.79,16.88640551]
[1723132253392,6.2543,159.89,159.81,6.257]
[1723132253694,15.6338,159.91,159.79,15.6446]
[1723132253864,60.6367,159.88,159.75,21.9628]
[1723132254071,62.20116759,159.88,159.75,21.9628]
[1723132254272,60.6367,159.88,159.75,21.9628]
[1723132254490,6.2562,159.85,159.78,6.2585]
[1723132254661,45.0,159.84,159.78,6.2585]
[1723132254867,6.2566,159.83,159.76,6.2593]
[1723132255101,45.0,159.82,159.76,6.2593]
[1723132255395,45.0,159.82,159.75,15.6484]
[1723132255575,6.2583,159.79,159.72,6.2607]
[1723132255779,51.2586,159.78,159.71,21.9135]
[1723132255986,55.8241,159.84,159.71,21.9135]
[1723132255987,6.2569,159.83,159.75,6.2597]
[1723132256197,51.2567,159.83,159.76,7.5029861]
[1723132256372,45.0,159.83,159.74,15.6504]
[1723132256699,6.2578,159.8,159.74,15.6504]
[1723132256876,6.2578,159.8,159.67,6.2857]
[1723132256877,46.56501441,159.79,159.67,6.2857]
[1723132257296,45.0,159.79,159.67,6.2857]
[1723132257678,6.2598,159.75,159.67,6.2628]
[1723132257899,45.0,159.74,159.66,15.6575]
[1723132258198,45.0,159.74,159.69,6.2621]
[1723132258693,6.2597,159.75,159.67,6.2625]
[1723132258870,2.52593639,159.81,159.66,1.24533716]
[1723132259070,6.259,159.77,159.68,15.6556]
[1723132259289,6.5076,159.91,159.7,40.7]
[1723132259493,6.2555,159.86,159.77,15.6472]
[1723132260167,22.1414,159.91,159.77,15.6472]
[1723132260364,2.47826109,159.92,159.85,6.2556]
[1723132260585,6.0892,159.93,159.86,1.24141107]
[1723132260792,6.2532,159.92,159.85,6.2555]
[1723132260976,6.2519,159.95,159.88,6.2546]
[1723132261176,43.19290479,159.98,159.86,15.6383]
[1723132261376,43.19290479,159.98,159.87,1.24070224]
[1723132261785,43.19290479,159.98,159.82,31.2834]
[1723132261786,1.56346779,159.97,159.83,15.6415]
[1723132261995,6.2523,159.94,159.87,6.255]
[1723132262174,6.2535,159.91,159.84,6.2562]
[1723132262370,24.2553179,159.99,159.85,1.24124851]
[1723132262575,24.2553179,159.99,159.87,6.255]
[1723132262890,6.2531,159.92,159.85,21.8952]
[1723132263202,6.2526,159.94,159.86,1.24124917]
[1723132263607,24.2553179,159.99,159.85,15.6394]
[1723132263778,8.6285179,159.99,159.86,1.24104452]
[1723132264104,8.6285179,159.99,159.88,15.6366]
[1723132264105,6.2526,159.94,159.88,15.6366]
[1723132264306,6.2521,159.95,159.89,7.49492585]
[1723132264596,6.2516,159.96,159.89,7.49492585]
[1723132265096,8.6285179,159.99,159.89,7.49492585]
[1723132265276,8.6285179,159.99,159.89,1.24072585]
[1723132265473,15.6221,160.03,159.92,6.2531]
[1723132265729,18.07949474,160.03,159.9,15.6339]
[1723132265880,6.2515,159.97,159.9,21.8876]
[1723132266200,18.07949474,160.03,159.91,1.2399652]
[1723132266201,6.2516,159.96,159.91,1.2399652]
[1723132266575,6.2511,159.97,159.91,1.2399652]
[1723132266912,51.2517,159.96,159.91,1.2399652]
[1723132267206,45.0,159.96,159.87,15.6377]
[1723132267375,45.0,159.96,159.88,1.24093155]
[1723132267577,6.2519,159.95,159.88,1.24093155]
[1723132267798,45.0,159.94,159.84,21.8963]
[1723132268007,45.0,159.94,159.85,1.24115545]
[1723132268202,51.2526,159.94,159.87,6.255]
[1723132268412,45.0,159.94,159.9,6.2538]
[1723132268702,15.6221,160.03,159.91,1.24039199]
[1723132269012,15.6221,160.03,159.9,15.634]
[1723132269393,6.2516,159.96,159.9,15.634]
[1723132269593,6.2519,159.95,159.89,6.254]
[1723132269792,6.2516,159.96,159.9,1.24045918]
[1723132269988,15.6247,160.01,159.89,1.24042545]
[1723132270293,45.0,160.0,159.9,1.23995985]
[1723132270597,6.2504,159.99,159.92,6.253]
[1723132270788,6.2508,159.98,159.92,6.253]
[1723132270995,6.2514,159.97,159.9,7.49345985]
[1723132271719,15.6237,160.02,159.9,1.23995985]
[1723132271936,37.6644,160.04,159.88,16.4838]
[1723132271937,6.4209,160.04,159.88,16.4838]
[1723132272094,15.7645,160.07,159.97,6.251]
[1723132272418,6.3284,160.09,160.0,6.2496]
[1723132272743,6.2486,160.04,159.96,6.2513]
[1723132272922,6.3284,160.09,159.95,16.86789429]
[1723132273123,6.2477,160.06,159.97,6.2508]
[1723132273423,6.2472,160.07,159.99,15.6256]
[1723132273619,6.2467,160.09,160.0,1.23796159]
[1723132273922,267.7249944,160.14,160.02,15.6226]
[1723132274126,6.2472,160.07,159.98,16.4683]
[1723132274423,6.2481,160.05,159.98,38.3454]
[1723132274731,76.6549944,160.14,159.96,6.2512]
[1723132275026,76.6549944,160.14,159.93,15.3488]
[1723132275027,6.2481,160.05,159.94,15.6305]
[1723132275201,6.2484,160.04,159.95,1.23863905]
[1723132275411,15.6158,160.1,159.96,6.2515]
[1723132275790,6.2515,159.96,159.9,15.6341]
[1723132276010,6.2496,160.01,159.94,6.2523]
[1723132276289,45.0,160.0,159.9,15.6341]
[1723132276502,45.0,160.0,159.93,15.6313]
[1723132276702,45.0,160.01,159.94,1.23929832]
[1723132276904,260.7,160.07,159.99,6.2503]
[1723132277112,6.2476,160.06,159.99,6.2502]
[1723132277406,6.2478,160.06,159.96,15.6283]
[1723132277613,6.2478,160.06,159.98,6.2507]
[1723132277921,6.2461,160.1,159.99,15.6252]
[1723132278130,7.0643944,160.14,160.05,15.6197]
[1723132278325,0.8198944,160.14,160.05,15.6197]
[1723132278624,0.8198944,160.14,159.98,15.6839]
[1723132278801,6.2473,160.07,160.0,6.2498]
[1723132278997,6.2464,160.1,160.01,1.23802622]
[1723132279309,0.8198944,160.14,160.06,15.6188]
[1723132279627,26.22360654,160.14,160.0,6.2497]
[1723132279832,6.2467,160.09,159.98,31.3105]
[1723132280122,26.22360654,160.14,159.98,31.3105]
[1723132280123,46.22360654,160.14,159.98,31.3105]
[1723132280434,6.2465,160.09,159.98,31.3105]
[1723132280593,1.5622691,160.13,159.98,31.3105]
[1723132280799,26.22360654,160.14,159.98,31.3105]
[1723132281103,10.61180654,160.14,160.02,15.6227]
[1723132281293,6.2465,160.09,160.02,21.8718]
[1723132281500,10.61180654,160.14,160.06,6.2474]
[1723132281708,6.2449,160.13,160.06,6.2474]
[1723132281919,10.61180654,160.14,160.03,1.23657605]
[1723132282222,0.8198944,160.14,160.11,15.6137]
[1723132282694,0.8198944,160.14,160.07,15.6176]
[1723132282894,0.8198944,160.14,160.09,6.2464]
[1723132283096,0.8198944,160.14,160.1,1.23586493]
[1723132283309,0.8198944,160.14,160.07,15.6176]
[1723132283698,0.8198944,160.14,160.08,1.23581923]
[1723132284098,0.8198944,160.14,160.08,6.2468]
[1723132284499,0.8198944,160.14,160.07,1.23603357]
[1723132284928,45.8198944,160.14,160.09,6.2463]
[1723132285295,0.8198944,160.14,160.09,21.8621]
[1723132285511,0.8198944,160.14,160.09,15.6158]
[1723132285800,0.8198944,160.14,160.07,6.2468]
[1723132286103,0.8198944,160.14,160.05,15.6195]
[1723132286104,0.8198944,160.14,160.05,21.8675]
[1723132286307,6.2453,160.12,160.05,15.6195]
[1723132286514,6.2476,160.07,159.97,6.1865]
[1723132286719,6.2472,160.08,160.0,15.6245]
[1723132286910,6.248,160.05,159.97,6.2511]
[1723132287117,45.0,160.04,159.93,15.7924]
[1723132287428,110.2493,160.06,159.93,15.7924]
[1723132287626,110.2493,160.06,159.87,16.0233]
[1723132287627,15.6231,160.02,159.87,16.0233]
[1723132287843,45.0,160.01,159.9,15.6345]
[1723132287997,45.0,160.01,159.89,6.2541]
[1723132288326,6.2511,159.97,159.89,6.2542]
[1723132288534,45.0,159.96,159.86,15.6378]
[1723132288837,51.1935902,159.98,159.82,15.6417]
[1723132289139,6.2531,159.92,159.85,6.2558]
[1723132289297,45.0,159.91,159.84,6.2562]
[1723132289497,45.0,159.91,159.82,15.6417]
[1723132289498,45.0,159.91,159.82,21.8984]
[1723132289714,45.0,159.91,159.82,15.6417]
[1723132289915,51.2535,159.91,159.84,6.2562]
[1723132290120,45.0,159.91,159.84,6.2562]
[1723132290297,45.0,159.92,159.84,6.2562]
[1723132290501,45.0,159.92,159.85,6.2558]
[1723132290942,51.2531,159.92,159.85,6.2558]
[1723132291427,45.0,159.92,159.83,1.24167151]
[1723132292012,51.2531,159.92,159.83,6.2562]
[1723132292333,45.0,159.92,159.83,6.2562]
[1723132293037,6.2551,159.87,159.78,21.9046]
[1723132293334,46.56420112,159.86,159.75,15.5054]
[1723132293532,6.2578,159.8,159.74,15.6498]
[1723132293743,45.0,159.79,159.74,15.6498]
[1723132293906,45.0,159.79,159.7,15.6537]
[1723132294108,45.0,159.79,159.73,6.2605]
[1723132294333,45.0,159.79,159.73,15.6506]
[1723132294540,49.63,159.85,159.73,15.6506]
[1723132294836,6.2579,159.8,159.73,15.6506]
[1723132295035,6.2596,159.76,159.69,15.655]
[1723132295328,45.0,159.75,159.69,15.655]
[1723132295538,45.0,159.75,159.7,1.24543292]
[1723132295835,6.2582,159.79,159.71,7.50606482]
[1723132296014,45.0,159.78,159.71,6.2613]
[1723132296624,45.0,159.78,159.7,1.2449102]
[1723132296810,45.0,159.78,159.69,15.655]
[1723132297015,51.2589,159.78,159.69,15.655]
[1723132297212,6.2593,159.77,159.69,15.655]
[1723132297516,6.2598,159.75,159.69,15.655]
[1723132297747,6.2601,159.74,159.65,15.6586]
[1723132298252,45.0,159.73,159.65,15.6586]
[1723132298540,45.0,159.73,159.67,6.2629]
[1723132298831,45.0,159.73,159.65,15.6586]
[1723132299055,51.2607,159.73,159.65,21.922]
[1723132299468,6.2609,159.72,159.65,21.922]
[1723132299756,45.0,159.71,159.65,21.922]
[1723132299932,45.0,159.71,159.65,15.6586]
[1723132300136,58.23670787,159.78,159.68,15.6558]
[1723132300344,8.60670787,159.78,159.69,6.262]
[1723132300956,8.60670787,159.78,159.64,15.6596]
[1723132301166,1.56533523,159.77,159.64,15.6596]
[1723132301451,8.60670787,159.78,159.64,15.6596]
[1723132301452,6.261,159.72,159.65,6.2636]
[1723132301626,45.0,159.71,159.65,6.2636]
[1723132302059,45.0,159.71,159.66,6.2632]
[1723132302229,6.2621,159.69,159.62,6.2648]
[1723132302432,45.0,159.68,159.62,6.2648]
[1723132302634,45.0,159.68,159.61,6.2652]
[1723132302950,45.0,159.68,159.64,6.2639]
[1723132303256,45.0,159.68,159.63,21.9254]
[1723132303548,266.8659,159.78,159.66,15.6579]
[1723132303753,266.8659,159.78,159.67,1.24566691]
[1723132303924,6.2601,159.74,159.66,15.6579]
[1723132304124,269.32954523,159.78,159.67,7.50873938]
[1723132304326,269.32954523,159.78,159.69,6.2617]
[1723132304538,269.32954523,159.78,159.66,15.6579]
[1723132304741,6.2602,159.74,159.67,6.2626]
[1723132304967,6.2602,159.74,159.66,21.9211]
[1723132305123,6.2602,159.74,159.67,6.2628]
[1723132305327,49.63,159.77,159.66,15.6579]
[1723132305546,6.2607,159.73,159.66,15.6579]
[1723132305752,1.56566341,159.76,159.62,15.6614]
[1723132305942,6.2621,159.7,159.62,15.6614]
[1723132306134,49.63,159.73,159.65,15.6588]
[1723132306135,45.0,159.69,159.65,15.6588]
[1723132306433,65.2776,159.77,159.67,6.2628]
[1723132306633,6.2622,159.69,159.62,6.2647]
[1723132306947,45.0,159.68,159.63,6.2644]
[1723132307152,45.0,159.68,159.61,15.6631]
[1723132307455,45.0,159.68,159.62,6.2648]
[1723132307751,45.0,159.69,159.61,15.6631]
[1723132308258,45.0,159.69,159.58,0.8198944]
[1723132308439,45.0,159.7,159.58,0.8198944]
[1723132308644,46.56624254,159.7,159.58,0.8198944]
[1723132308865,6.2637,159.65,159.58,7.0862944]
[1723132309158,6.2648,159.62,159.58,0.8198944]
[1723132309464,6.266,159.59,159.58,0.8198944]
[1723132309638,1.56698275,159.6,159.49,15.6742]
[1723132309837,6.2676,159.56,159.49,21.944]
[1723132310041,45.0,159.55,159.49,21.944]
[1723132310364,46.56719816,159.55,159.44,16.2694]
[1723132310681,45.0,159.55,159.42,16.5009944]
[1723132310834,49.63,159.53,159.42,0.8198944]
[1723132311035,31.56802028,159.54,159.42,0.8198944]
[1723132311036,45.0,159.52,159.42,0.8198944]
[1723132311235,6.2688,159.52,159.45,6.2715]
[1723132311463,45.0,159.51,159.46,1.25100836]
[1723132311641,45.0,159.53,159.46,1.25100836]
[1723132311642,45.0,159.53,159.47,15.6764]
[1723132312435,6.4658,159.56,159.48,1.25067947]
[1723132312766,6.4658,159.56,159.49,6.2699]
[1723132312944,45.0,159.55,159.48,1.25067947]
[1723132313151,6.1334,159.61,159.5,15.6738]
[1723132313462,6.2641,159.64,159.53,15.6708]
[1723132313635,12.3965,159.67,159.59,15.6646]
[1723132313836,6.1334,159.67,159.59,21.9306]
[1723132314068,6.1334,159.67,159.55,15.6682]
[1723132314256,6.264,159.65,159.57,6.2664]
[1723132314561,6.1334,159.67,159.55,15.6682]
[1723132314734,6.2652,159.61,159.55,15.6682]
[1723132314932,6.1334,159.67,159.54,6.2678]
[1723132314933,65.2893,159.65,159.54,6.2677]
[1723132315134,6.2649,159.62,159.55,6.2676]
[1723132315358,49.63,159.65,159.54,15.6698]
[1723132316051,6.2652,159.61,159.54,21.9378]
[1723132316254,45.0,159.6,159.54,15.6698]
[1723132316554,6.2677,159.55,159.49,16.1129]
[1723132316754,45.0,159.54,159.49,16.1129]
[1723132317059,45.0,159.6,159.45,7.34555269]
[1723132317263,45.0,159.6,159.49,15.6749]
[1723132317439,45.0,159.6,159.51,6.2688]
[1723132317642,6.2667,159.58,159.51,6.2688]
[1723132317835,51.2668,159.57,159.49,15.6749]
[1723132318037,45.0,159.57,159.51,6.2691]
[1723132318238,45.0,159.58,159.51,15.672]
[1723132318440,51.2665,159.58,159.51,21.9408]
[1723132318656,6.2668,159.57,159.51,15.672]
[1723132318860,45.0,159.56,159.51,15.672]
[1723132319061,49.63,159.65,159.55,6.2672]
[1723132319062,6.2648,159.62,159.55,6.2672]
[1723132319265,51.2656,159.61,159.54,21.9375]
[1723132319434,45.0,159.61,159.5,15.6732]
[1723132319633,6.2664,159.58,159.51,6.2688]
[1723132319860,51.2668,159.57,159.5,15.6732]
[1723132320041,45.0,159.57,159.5,15.6732]
[1723132320236,45.0,159.57,159.54,6.2678]
[1723132320563,45.0,159.57,159.53,6.2683]
[1723132320763,45.0,159.57,159.45,6.0957]
[1723132320952,2.5427551,159.63,159.46,20.0]
[1723132321137,49.63,159.69,159.55,15.6683]
[1723132321339,49.63,159.69,159.46,20.0]
[1723132321340,49.63,159.69,159.51,31.3444]
[1723132321557,15.6572,159.68,159.52,20.0]
[1723132321751,8.6070072,159.67,159.53,6.2684]
[1723132321948,49.63,159.65,159.52,20.0]
[1723132322238,49.63,159.65,159.45,6.0957]
[1723132322547,49.63,159.65,159.53,15.6707]
[1723132322746,8.6070072,159.67,159.53,15.6707]
[1723132323060,6.2655,159.61,159.54,6.2676]
[1723132323265,6.2659,159.6,159.53,15.6707]
[1723132323448,1.56689041,159.63,159.52,6.2688]
[1723132323651,17.22879041,159.63,159.5,15.6736]
[1723132323854,6.2665,159.58,159.51,6.2691]
[1723132324051,6.2657,159.6,159.53,15.671]
[1723132324249,45.0,159.59,159.54,6.2677]
[1723132324740,51.2661,159.59,159.53,15.671]
[1723132324945,45.0,159.59,159.53,15.671]
[1723132325174,21.7909,159.67,159.56,15.6679]
[1723132325446,21.7909,159.67,159.51,31.3452]
[1723132325447,6.1334,159.67,159.57,1.24810004]
[1723132325668,6.264,159.64,159.58,6.2663]
[1723132325870,7.6998692,159.67,159.55,6.491]
[1723132326171,6.2652,159.62,159.55,6.491]
[1723132326345,15.6584,159.66,159.54,16.91761116]
[1723132326546,15.6584,159.66,159.57,6.2666]
[1723132326756,45.0,159.65,159.56,31.3356]
[1723132326957,292.0055,159.72,159.57,1.2479652]
[1723132326958,332.4271,159.72,159.57,1.2479652]
[1723132327177,332.4271,159.72,159.58,1.24736144]
[1723132327353,6.2621,159.69,159.63,6.2641]
[1723132327555,6.4447,159.72,159.62,15.6616]
[1723132327869,40.78044496,159.75,159.57,20.0]
[1723132327870,49.63,159.76,159.66,15.6577]
[1723132328072,6.4447,159.77,159.67,1.2458242]
[1723132328241,49.63,159.8,159.73,6.2604]
[1723132328242,6.2578,159.8,159.73,6.2604]
[1723132328448,6.2574,159.81,159.74,6.2601]
[1723132328855,12.7021,159.82,159.73,15.6507]
[1723132329064,12.7021,159.82,159.69,31.3091]
[1723132329065,87.6133,159.88,159.76,15.6483]
[1723132329255,71.9626,159.88,159.76,15.6483]
[1723132329567,74.4592125,159.88,159.76,15.6483]
[1723132329745,15.6387,159.86,159.72,15.6516]
[1723132329951,6.2587,159.78,159.72,21.9125]
[1723132330168,6.2582,159.79,159.72,21.9125]
[1723132330674,1.56500965,159.82,159.64,20.0]
[1723132330965,49.63,159.84,159.72,15.652]
[1723132331153,6.2581,159.8,159.73,6.2602]
[1723132331354,6.257,159.83,159.74,15.6494]
[1723132331560,71.9626,159.88,159.75,6.2597]
[1723132331771,71.9626,159.88,159.7,15.6537]
[1723132331772,20.0,159.86,159.7,15.6537]
[1723132331941,6.259,159.77,159.7,21.9153]
[1723132332142,49.63,159.84,159.73,15.6513]
[1723132332342,6.2574,159.81,159.73,15.6513]
[1723132332569,6.2579,159.8,159.73,15.6513]
[1723132332797,6.2579,159.8,159.73,21.9115]
[1723132332977,1.56501635,159.83,159.73,15.6513]
[1723132333179,49.63,159.84,159.69,15.6544]
[1723132333360,49.63,159.84,159.72,15.6516]
[1723132333671,45.0,159.83,159.72,15.6516]
[1723132333855,45.0,159.83,159.71,6.2612]
[1723132334050,6.2586,159.78,159.71,6.2612]
[1723132334349,45.0,159.77,159.72,6.2608]
[1723132334737,45.0,159.78,159.7,1.24485193]
[1723132334941,52.07683465,159.84,159.68,31.311]
[1723132335173,52.07683465,159.84,159.69,1.2443672]
[1723132335345,52.07683465,159.84,159.69,21.2443672]